Cogmind - Beta 13 @@@ ROGUE MODE // 2024.04.01 @ 16:20:24 Player: Yovador Result: Destroyed by G-34 Mercenary with Small Laser Performance ------------- Evolutions (1) 500 Regions Visited (3) 600 Robots Destroyed (47) 235 Value Destroyed (1211) 1211 Prototype IDs (1) 20 Alien Tech Used (0) 0 Bonus (0) 0 TOTAL SCORE: 2566 Bonus ------- None Cogmind --------- Core Integrity 0/400 Matter 190/300 Energy 125/125 System Corruption 4% Temperature Cool (21) Movement Core (250) Ox4 Location -9/Materials Parts ------- > --- POWER (1) -------- Light Ion Engine > --- PROPULSION (2) --- (None) > --- UTILITY (4) ------ Improved Targeting Computer Backup Plating I Medium Armor Plating > --- WEAPON (2) ------- Backup Laser I Backup Laser I > --- INVENTORY (5) ---- Grenade Launcher Mining Laser Peak State ------------ > --- POWER ------------ Heavy Ion Engine > --- PROPULSION ------- Armored Wheel Armored Wheel > --- UTILITY ---------- Small Storage Unit Improved Targeting Computer Improved Targeting Computer Hacking Suite > --- WEAPON ----------- Particle Gun Light Cannon > --- INVENTORY -------- Light Ion Engine Improved Ion Engine Light Treads Light Treads Particle Gun EMP Blaster Grenade Launcher Mining Laser [Rating: 19] Favorites ----------- Power Heavy Ion Engine Engine Heavy Ion Engine Propulsion Light Treads Treads Light Treads Wheel Armored Wheel Hover Unit Hover Unit Utility Improved Targeting Computer Device Seismic Detector Storage Small Storage Unit Processor Improved Targeting Computer Hackware Hacking Suite Protection Medium Armor Plating Weapon Light Cannon Energy Gun Particle Gun Energy Cannon Light EM Pulse Cannon Ballistic Gun Light Assault Rifle Ballistic Cannon Light Cannon Launcher EMP Blaster Special Weapon Mining Laser Build | -11 -10 -10 -9 ------- Run | Yrd Mat Min Mat Slots Evolved 2 | . . . 2 Power . | . . . . Propulsion . | . . . . Utility 2 | . . . 2 Weapon . | . . . . Parts Attached 42 | 6 7 4 25 Power 8 | 1 2 . 5 Engine 8 | 1 2 . 5 Core . | . . . . Reactor . | . . . . Propulsion 6 | 2 . 2 2 Treads 2 | 2 . . . Leg . | . . . . Wheel 3 | . . 2 1 Hover 1 | . . . 1 Flight . | . . . . Utility 8 | 1 1 . 6 Device 2 | . . . 2 Storage 1 | 1 . . . Processor 2 | . 1 . 1 Hackware 1 | . . . 1 Protection 2 | . . . 2 Artifact . | . . . . Weapon 20 | 2 4 2 12 Energy Gun 6 | 1 . 1 4 Energy Cannon 2 | . . . 2 Ballistic Gun 3 | 1 1 . 1 Ballistic Cannon 3 | . 1 . 2 Launcher 4 | . 2 . 2 Special Weapon 2 | . . 1 1 Impact Weapon . | . . . . Slashing Weapon . | . . . . Piercing Weapon . | . . . . Special Melee Weapon . | . . . . Unidentified Prototypes 1 | . 1 . . Parts Lost 17 | . 3 . 14 Power 3 | . 1 . 2 Propulsion 4 | . . . 4 Utility 3 | . . . 3 Weapon 7 | . 2 . 5 Highest Loss Streak 6 | . 2 . 6 To Critical Strikes . | . . . . Average Slot Usage (%) 93 | . 98 100 85 Engine 12 | . 14 14 10 Treads 12 | . 28 14 . Wheel 8 | . . 13 11 Device 2 | . . . 5 Storage 10 | . 14 14 6 Processor 15 | . 13 14 17 Hackware 3 | . . . 8 Protection 1 | . . . 3 Energy Gun 6 | . 3 6 9 Energy Cannon 1 | . . . 2 Ballistic Gun 4 | . 10 . 3 Ballistic Cannon 6 | . 1 14 5 Launcher 5 | . 12 6 . Naked Turns . | . . . . Heaviest Build 21 | 11 20 20 21 Greatest Support 40 | 40 40 40 24 Greatest Overweight (x) 6 | . . . 6 Average Overweight (x) . | . . . 1 Largest Inventory Capacity 8 | 8 8 8 8 Average Capacity 7 | 7 8 8 6 Most Carried 8 | 7 8 8 8 Average Carried 6 | 4 7 7 5 Final Capacity 8 | 8 8 8 5 Final Carried 8 | 6 8 8 2 Class Distribution -------------------- 100% | Mutant Dominant Class ---------------- Mutant | -10/Materials Mutant | -10/Mines Mutant | -9/Materials Resources | -11 -10 -10 -9 ----------- Run | Yrd Mat Min Mat Matter Collected 1042 | 192 208 159 483 Remotely . | . . . . Salvage Created 1616 | . 471 283 862 Parts 104 | . 36 15 53 Haulers Intercepted . | . . . . Recyclers Shooed . | . . . . Parts Field Recycled . | . . . . Retrieved Matter . | . . . . Parts Self-Destructed . | . . . . Prevented . | . . . . Kills | -11 -10 -10 -9 ------- Run | Yrd Mat Min Mat Combat Hostiles Destroyed 28 | . 7 5 16 Guns 11 | . 4 2 5 Cannons 11 | . . 2 9 AOE 6 | . 3 1 2 Classes Destroyed 10 | . 6 1 3 Worker 2 | . 1 . 1 Builder 4 | . 4 . . Recycler 5 | . 1 2 2 Operator 2 | . . . 2 Watcher 7 | . 3 . 4 Swarmer 3 | . 3 . . Grunt 18 | . 4 4 10 Brawler 1 | . . . 1 Sentry 5 | . . . 5 Assembled 1 | . . 1 . Best Kill Streak 5 | . 5 2 3 Combat Bots Only 3 | . 3 2 3 Max Kills in Single Turn 3 | . 3 1 1 Gunslinging . | . . . . Exploded 1 | . 1 1 1 Melee . | . . . . Uniques/NPCs Destroyed . | . . . . Combat | -11 -10 -10 -9 -------- Run | Yrd Mat Min Mat Hostile Shots Fired 206 | . 49 8 149 Missed 44 | . 9 3 32 Damage Taken 2393 | . 478 129 1786 Core 476 | . 70 . 406 Absorbed by Shields . | . . . . Regen/Repaired (Parts) 90 | . . . 90 Core Remaining (%) 86 | 100 . 72 . Volleys Fired 148 | . 38 23 87 Largest 2 | . 2 2 2 Hottest 135 | . 73 135 130 Shots Fired 239 | . 50 46 143 Gun 112 | . 38 12 62 Cannon 96 | . . 23 73 Launcher 21 | . 12 2 7 Special 10 | . . 9 1 Kinetic 120 | . 22 23 75 Thermal 60 | . . 21 39 Explosive 7 | . . . 7 Electromagnetic 52 | . 28 2 22 Robot Hit Streak 18 | . 18 16 14 Robot Miss Streak 3 | . 3 1 3 Penetration Max . | . . . . Secondary Targets . | . . . . Shots Hit Robots 150 | . 31 23 96 Core Hits 71 | . 23 9 39 Critical Kills . | . . . . Critical Parts Destroyed . | . . . . Critical Strikes 5 | . . . 5 Burn 2 | . . . 2 Blast 2 | . . . 2 Corrupt 1 | . . . 1 Melee Attacks . | . . . . Impact . | . . . . Slashing . | . . . . Piercing . | . . . . Sneak Attacks . | . . . . Combat Hostiles . | . . . . Follow-up Attacks . | . . . . Damage Inflicted 3430 | . 1010 390 2030 Guns 1117 | . 307 175 635 Cannons 1210 | . . 155 1055 Explosions 1079 | . 703 36 340 Melee . | . . . . Ramming . | . . . . Kinetic 1214 | . 133 155 926 Thermal 842 | . 293 199 350 Explosive 340 | . . . 340 Electromagnetic 1034 | . 584 36 414 Impact . | . . . . Slashing . | . . . . Piercing . | . . . . Highest Corruption 4 | . 2 3 4 Average Corruption 2 | . 1 2 2 Corruption Purged . | . . . . Corruption Blocked . | . . . . Effects 21 | . 5 7 9 Message Errors 6 | . 1 3 2 Matter Fused 9 | . 3 1 5 Heat Flow Errors 1 | . . 1 . Parts Rejected 1 | . . . 1 Data Loss (minor) 2 | . 1 1 . Data Loss (major) 1 | . . 1 . Misfires 1 | . . . 1 Overload Shots . | . . . . Overflow Damage 64 | . 36 16 12 Projectiles 26 | . . 16 10 Explosions 38 | . 36 . 2 Melee . | . . . . Knockbacks 9 | . . 2 7 Impact . | . . . . Kinetic 9 | . . 2 7 Secondary . | . . . . Self-Inflicted Damage 196 | . 69 38 89 Shots 8 | . 2 2 4 Rammed . | . . . . Targets Rammed . | . . . . Kicked . | . . . . Crushed . | . . . . Highest Temperature 428 | . 39 176 428 Average Temperature 87 | . 11 63 117 Received Heat Transfer 930 | . 123 18 789 Effects 11 | . . . 11 Energy Bleed 3 | . . . 3 Interference 4 | . . . 4 Short Circuit 3 | . . . 3 Damage (minor) 1 | . . . 1 Siege Activations . | . . . . Robots Corrupted . | . . . . Combat Hostiles . | . . . . Parts Fried 4 | . 4 . . Impact Corruptions . | . . . . Robots Melted . | . . . . Combat Hostiles . | . . . . Parts Melted 4 | . 2 . 2 Heat Transferred 1880 | . 350 457 1073 Parts Sabotaged . | . . . . Parts Stolen . | . . . . Parts Stripped . | . . . . Power Chain Reactions 3 | . 3 . . Alert | -11 -10 -10 -9 ------- Run | Yrd Mat Min Mat Peak Influence 376 | . 193 100 376 Initial . | . . . . Average 125 | . 66 41 240 Maximum Alert Level 1 | . . . 1 Low Security (%) 75 | 100 100 100 38 Level 1 24 | . . . 61 Level 2 . | . . . . Level 3 . | . . . . Level 4 . | . . . . Level 5 . | . . . . High Security . | . . . . Max Security . | . . . . Squads Dispatched 2 | . 1 . 1 Investigation . | . . . . Extermination . | . . . . Reinforcement 2 | . 1 . 1 Assault . | . . . . Garrison . | . . . . Intercept . | . . . . Searches Triggered . | . . . . Construction Impeded 1 | . . . 1 Haulers Reinforced . | . . . . Active Scanning Responses . | . . . . Cargo Convoy Interrupts . | . . . . Stealth | -11 -10 -10 -9 --------- Run | Yrd Mat Min Mat Distress Signals 3 | . 1 . 2 Communications Jammed . | . . . . Distress Signals . | . . . . Times Spotted 53 | . 11 6 36 Peak Tracking Total 8 | . 4 2 8 Tactical Retreats 7 | . . 1 6 Traps | -11 -10 -10 -9 ------- Run | Yrd Mat Min Mat Traps Triggered 5 | . 2 . 3 Indirectly . | . . . . Trap Hack Attempts . | . . . . Triggered . | . . . . Disarmed . | . . . . Reprogrammed . | . . . . Reused . | . . . . Traps Extracted . | . . . . Installed . | . . . . Triggered . | . . . . Machines | -11 -10 -10 -9 ---------- Run | Yrd Mat Min Mat Machines Disabled 6 | . 2 . 4 Max in Single Turn 1 | . 1 . 1 Machines Repaired . | . . . . Machines Dismantled . | . . . . Machines Sabotaged . | . . . . Overloaded Fab Kills . | . . . . Hacking | -11 -10 -10 -9 --------- Run | Yrd Mat Min Mat Machines Accessed 7 | . 3 . 4 Terminals 4 | . 1 . 3 Fabricators . | . . . . Repair Stations 1 | . . . 1 Recycling Units 2 | . 2 . . Scanalyzers . | . . . . Garrison Access . | . . . . Total Hacks 18 | . 6 . 12 Successful 10 | . 2 . 8 Failed 8 | . 4 . 4 Catastrophic 1 | . 1 . . Database Lockouts . | . . . . Manual . | . . . . Terminals 11 | . 2 . 9 Fabricators . | . . . . Repair Stations 3 | . . . 3 Recycling Units 4 | . 4 . . Scanalyzers . | . . . . Garrison Access . | . . . . Terminal Hacks 6 | . . . 6 Level Access Points 1 | . . . 1 Alert Level 1 | . . . 1 Locate Traps 1 | . . . 1 Dispatch Records 1 | . . . 1 Investigation Status 1 | . . . 1 Reinforcement Status 1 | . . . 1 Fabricator Hacks . | . . . . Repair Station Hacks 2 | . . . 2 Scan Component 1 | . . . 1 Repair 1 | . . . 1 Recycling Unit Hacks 2 | . 2 . . Report Inventory 2 | . 2 . . Scanalyzer . | . . . . Garrison Access Hacks . | . . . . Unauthorized Hacks . | . . . . Terminals . | . . . . Fabricators . | . . . . Repair Stations . | . . . . Recycling Units . | . . . . Scanalyzers . | . . . . Garrison Access . | . . . . Data Cores Recovered 1 | . . . 1 Used 1 | . . . 1 Hacking Detections 4 | . 2 . 2 Full Trace Events 2 | . . . 2 Feedback Events . | . . . . Feedback Blocked . | . . . . Robot Schematics Acquired . | . . . . Robots Built . | . . . . Authchips . | . . . . Time . | . . . . Total Robot Build Rating . | . . . . Part Schematics Acquired . | . . . . Parts Built . | . . . . Authchips . | . . . . Time . | . . . . Total Part Build Rating . | . . . . Parts Repaired 1 | . . . 1 Time 51 | . . . 51 Parts Recycled . | . . . . Recycled Matter . | . . . . Retrieved Matter . | . . . . Retrieved Components . | . . . . Parts Scanalyzed . | . . . . Part Schematics Acquired . | . . . . Parts Damaged . | . . . . Bothacking | -11 -10 -10 -9 ------------ Run | Yrd Mat Min Mat Used RIF Installer . | . . . . Robots Hacked . | . . . . Non-combat . | . . . . Combat . | . . . . Robot Hacks Applied . | . . . . Relay Couplers Released . | . . . . Fabnet Peak Effective % . | . . . . Robots Rewired . | . . . . Allies Hacked . | . . . . Hacks Repelled . | . . . . Allies | -11 -10 -10 -9 -------- Run | Yrd Mat Min Mat Total Allies 1 | . . 1 . Largest Group 1 | . . 1 . Highest-Rated Group 31 | . . 31 . Highest-Rated Ally 31 | . . 31 . Total Orders . | . . . . Ally Attacks . | . . . . Total Damage . | . . . . Kills . | . . . . Allies Corrupted . | . . . . Allies Melted . | . . . . Intel | -11 -10 -10 -9 ------- Run | Yrd Mat Min Mat Robot Analysis Total . | . . . . Derelict Logs Recovered 2 | . . 2 . Drone Launches . | . . . . Drone Recoveries . | . . . . Exploration | -11 -10 -10 -9 ------------- Run | Yrd Mat Min Mat Turns Passed 3020 | 138 893 800 1189 Spaces Moved 1741 | 83 487 580 591 Core 130 | 11 . . 119 Treads 785 | 72 487 226 . Legs . | . . . . Wheels 766 | . . 354 412 Hover 60 | . . . 60 Flight . | . . . . Fastest Speed 50 | 50 160 90 85 Average Speed 134 | 145 160 117 129 Slowest Speed 350 | 160 160 160 350 Overloaded Moves . | . . . . Propulsion Burnouts . | . . . . Robots Hopped . | . . . . Cave-ins Triggered . | . . . . Exploration Rate (%) 57 | 6 77 101 47 Regions Visited 3 Branch Regions 1 Pre-discovered Areas . | . . . . Known Exits Taken . | . . . . Unknown Exits Taken 3 | 1 1 1 . Scrap Searched 3 | . . 3 . Spaces Dug 5 | . . . 5 Terrain Destroyed 57 | . 3 4 50 Melee . | . . . . Projectile 5 | . . 4 1 AOE 52 | . 3 . 49 Terrain Rammed . | . . . . Walls Destroyed . | . . . . Machines Disabled . | . . . . Actions | -11 -10 -10 -9 --------- Run | Yrd Mat Min Mat Total 2171 | 100 558 635 878 Wait 184 | . 11 23 150 Move 1738 | 82 486 579 591 Hop . | . . . . Pick Up 43 | 12 11 3 17 Fast Attach . | . . . . Attach 29 | 6 4 1 18 Detach 1 | . . . 1 Swap 13 | . 3 3 7 Drop 15 | . 5 3 7 Fire 148 | . 38 23 87 Melee . | . . . . Ram . | . . . . Kick . | . . . . Crush . | . . . . Escape Stasis . | . . . . Rewire . | . . . . Trap . | . . . . Miscellaneous . | . . . . Route ------- -11/Scrapyard -10/Materials (discovered 4 exits: *Mat x3 / [*Min]) -10/Mines (discovered 2 exits: *Mat x2) -9/Materials (discovered 4 exits: Mat x3 / [*Min]) History --------- Turn | Location | Event 9 | -11/Scrapyard | Discovered new exit (range 15) 139 | -11/Scrapyard | Entered Materials 307 | -10/Materials | Build established: Mutant 323 | -10/Materials | Discovered new exit (range 15) 428 | -10/Materials | Discovered new exit (range 12) 714 | -10/Materials | Discovered new exit (range 5) 777 | -10/Materials | Discovered new exit (range 12) 1032 | -10/Materials | Entered Mines 1035 | -10/Mines | Received a Mining Laser from a helpful Derelict 1047 | -10/Mines | Discovered new exit (range 9) 1191 | -10/Mines | Learned 4 Materials zone layouts 1191 | -10/Mines | Discovered new exit (range 7) 1374 | -10/Mines | Excavation squad dispatched 1374 | -10/Mines | A large section of the Mines collapsed 1832 | -10/Mines | Entered Materials 1832 | -9/Materials | Evolved 2 slots: Utility x2 1833 | -9/Materials | Identified exit to Materials 2225 | -9/Materials | Repaired Hvy. Ion Engine 2371 | -9/Materials | Discovered new exit (range 11) 2469 | -9/Materials | Core integrity fell below 50% 2518 | -9/Materials | Lost 6 parts (1p2n1u2w) 2771 | -9/Materials | Core integrity fell below 20% 2830 | -9/Materials | Lost 5 parts (1p1n1u2w) 3021 | -9/Materials | Destroyed by G-34 Mercenary with Small Laser Last Messages --------------- U-05 Engineer lays Concrete. U-05 Engineer builds a Door. U-05 Engineer lays Concrete. The unstable cave ceiling collapses. U-05 Engineer lays Concrete. U-05 Engineer builds a Wall. U-05 Engineer lays Concrete. U-05 Engineer builds a Wall. U-05 Engineer lays Concrete. T Acquired 44 matter. K-01 Serf collects debris. System corrupted: Matter fused (-8). System corrupted: FCS attempts to trigger Backup Laser I. System corrupted: Backup Laser I misfires. K-01 Serf cleans the Recycling Unit. Seismic Detector destroyed. Map ----- +----------------------------------------------------+ | ?????????????????????????????????????????????????? | | ?????????????????????????????????????????????????? | | ?????????????????????????????????????????????????? | | ?????????????????????????????????????????????????? | | ?????????????????????????????????????????????????? | | ?????????????????????????????????????????????????? | | ?????????????????????????????????????????????????? | | ?????????????????????????????????????????????????? | | ?????????????????????????????????????????????????? | | ?????????????????????????????????????????????????? | | ??????????????????????? ???????????????????????? | | ????????????????????? ??? ?????????????????? | | ?????????????????? ??? #???????????????? | | ???????????????? ??? #???????????????? | | ??????????????# "?" #???????????????? | | ??????????????# "?" #???????????????? | | ??????????????# !* "?" #???????????????? | | ??????????????# *! #???????????????? | | ??????????????? #???????????????? | | ??????????????# """ #???????????????? | | ??????????????? """ #???????????????? | | ???????????????? [ """ #???????????????? | | ????????????????# #???????????????? | | ????????????????? #???????????????? | | ????????????????# """ """ #???##??????????? | | ????????????????# """ @""" ## ###????????? | | ??????????? * """ g"""r ????? | | ??????????? g g g ### * #??????????? | | ??????????? g r #????????????????? | | ?????????????#####"Y"## ^ ################## | | ?????????????#####"""?# ^ % | | ????????????###########a | | ???????????### + ^ % | | ???????????# # ####################+######### | | ?????" "" # # [" #????????????# ####### | | ?????? """ # # R" ##???????????# # | | ???? S" # # % !" ##???????????# # | | ????? ?# # #########????# # """ | | ?????###???# #####/## ########+####/## """ | | ???????????# # #% " | | ???????????##### < + % | | ????????######## % #%! ! | | ????????# # #" "# ########## !!% | | ????????# ![ # #" |"! "# #????????#%!! | | ????????# [ + #"""""""# #????????# | | ????????# ][ # ######### #?#####??# | | ????????# # % ###"T"########## | | ????????# # | | ????????###+#### | | ??????????# #??# %% % " | +----------------------------------------------------+ Best States ------------- Heat Dissipation 28 Energy Generation 14 Energy Capacity 280 Matter Stores 300 Matter Capacity 300 Sight Range 16 Terrain Scan Density 10 ECM Strength 1 Armor Coverage 305 Evasion (%) 50 Targeting Accuracy 12 Recoil Reduction 2 Offensive Hacking 10 Item Schematics ----------------- None Robot Schematics ------------------ None Fabricated ------------ Nothing Alien Tech Used ----------------- None Achievements -------------- Dynamic Key Challenges ------------ None Game ------ Seed QuantumTrackerSpoofer Manual? 0 Play Time 00:29:57 Cumulative 6.7 hours Start 2024.04.01 @ 15:41:54 End 2024.04.01 @ 16:20:24 Sessions 1 Manual Loads 0 Difficulty Rogue Special Mode None Game No. 16 Rogue 16 Adventurer 0 Explorer 0 Win Type - Total 0 Types 0/0/0/0/0/0/0/0/0 Lore% 5 Gallery% 10 Achievement% 12 Wizard Run 0 Options --------- Layout 1 ASCII 0 Keyboard 0 Movement Mouse Keybinds 0 Fullscreen 1 Font 24/Smallcaps Map View 50x35 Zoom Use 0% Tactical HUD 0 Map Filters NONE Filters NONE Steam 1 RUN: 7fde631b-c1c3-417c-b41f-2a410d3c9f13